[Event "Polish Youth B18 Championship 2023"]
[Site "Jastrzebia Gora"]
[Date "2023.03.19"]
[Round "9.15"]
[White "Pisarek, Jan"]
[Black "Grzesik, Gracjan"]
[Result "0-1"]
[ECO "B90"]
[WhiteElo "1931"]
[BlackElo "2149"]
[Annotator "TA"]
[PlyCount "116"]
[EventDate "2023.03.11"]
[EventType "swiss"]
[EventCountry "POL"]
[SourceTitle "playchess.com"]
[Source "ChessBase"]
[SourceQuality "1"]
[TimeControl "40/5400+30:1800+30"]

{[%evp 12,116,24,25,22,8,16,13,25,19,46,12,25,5,21,4,12,8,15,28,26,27,35,20,34,0,0,-8,-8,-10,0,0,0,0,0,0,0,0,0,0,0,0,0,0,0,-51,-51,-51,-51,-51,-52,-52,-52,-52,-52,-87,-62,-53,-41,-104,-97,-119,-95,-117,-102,-111,-77,-76,-48,-88,-51,-103,-51,-127,-113,-151,-140,-341,-331,-331,-322,-508,-503,-481,-464,-611,-586,-550,-345,-337,-337,-262,-262,-337,-191,-191,-191,-191,-191,-191,-191,-337,-255,0,0,-29983,-29984]} 1. e4 {[%emt 0:00:05]} c5 {[%emt 0:00:02]} 2. Nf3 {[%emt 0:00:06][%cal Bg1f3,Bf3d4,Bd4b3,Bb3a5,Ba5c4,Bc4e3][%mdl 32]} d6 {[%emt 0:00:05]} 3. d4 {[%emt 0:00:07]} cxd4 {[%emt 0:00:03]} 4. Nxd4 {[%emt 0:00:06]} Nf6 {[%emt 0:00:04]} 5. Nc3 {[%emt 0:00:12]} a6 {[%emt 0:00:13]} 6. Nb3 {[%emt 0:00:15]} e5 {[%emt 0:02:51]} 7. Bg5 {[%emt 0:00:21]} Be6 {[%emt 0:01:56] is the new trend. B94: Sicilian Najdorf: 6 Bg5 Nbd7.} 8. Bxf6 {[%emt 0:00:37]} Qxf6 {[%emt 0:00:31]} 9. Na5 {[%emt 0:00:29]} Nc6 {[%emt 0:12:38] The position is equal.} 10. Nc4 {[%emt 0:00:27]} (10. Nxb7 $2 {too greedy.} Qe7 11. Nxd6+ Qxd6 12. Qxd6 Bxd6 $19) 10... Qd8 {[%emt 0:04:09]} 11. Ne3 {[%emt 0:02:38]} Be7 {[%emt 0:00:43]} 12. Ncd5 {[%emt 0:01:23]} O-O {[%emt 0:02:46] [#]} 13. g3 $146 {[%emt 0:04:00]} ({Predecessor:} 13. Be2 Nd4 14. O-O Rc8 15. c3 Bxd5 16. Nxd5 Ne6 17. Bg4 Rb8 18. Qe2 Nc7 19. Ne3 {½-½ Lochina,J (1526)-Szmidt,P (1852) Rubinstein Memorial op-D 57th 2021 (1)}) 13... Bg5 {[%emt 0:03:52]} 14. Bg2 {[%emt 0:01:02]} Qa5+ {[%emt 0:03:16]} 15. c3 {[%emt 0:03:23]} Bxe3 {[%emt 0:03:23]} 16. Nxe3 {[%emt 0:00:19]} Rfd8 {[%emt 0:00:14]} (16... Bxa2 $2 17. O-O $18 (17. Qxd6 Rfd8 $15)) 17. O-O {[%emt 0:04:12]} b5 {[%emt 0:01:59]} 18. Qd3 {[%emt 0:18:55]} (18. Nf5 {looks sharper.} f6 19. Bh3 Bc4 20. Qg4) 18... b4 {[%emt 0:08:33]} 19. c4 {[%emt 0:01:47]} Qc5 {[%emt 0:03:51]} 20. Rfd1 {[%emt 0:04:59]} Rac8 {[%emt 0:07:07]} 21. b3 {[%emt 0:08:59]} a5 {[%emt 0:01:08]} 22. h4 {[%emt 0:09:55]} a4 {[%emt 0:04:02]} 23. Kh2 {[%emt 0:02:42]} Ra8 {[%emt 0:04:21]} 24. Rab1 {[%emt 0:13:26]} axb3 {[%emt 0:07:19]} 25. axb3 {[%emt 0:00:05]} Ra2 {[%emt 0:06:52]} 26. Rd2 {[%emt 0:00:53]} Rxd2 {[%emt 0:03:14]} 27. Qxd2 {[%emt 0:00:05]} Qd4 {[%emt 0:02:11]} 28. Rd1 {[%emt 0:08:55]} (28. Qe2 $11) 28... Qxd2 $15 {[%emt 0:01:57]} 29. Rxd2 {[%emt 0:00:03]} Nd4 {[%emt 0:00:09]} 30. Rb2 {[%emt 0:01:23]} Ra8 {[%emt 0:01:18]} 31. Nc2 {[%emt 0:00:25] Wards off Ra3} Nxc2 {[%emt 0:01:45]} 32. Rxc2 {[%emt 0:00:03][%mdl 4096] Endgame KRB-KRB} Kf8 {[%emt 0:04:30]} 33. Bh3 {[%emt 0:02:12]} Bxh3 {[%emt 0:05:28]} 34. Kxh3 $17 {[%emt 0:00:05] KR-KR} Ra3 {[%emt 0:00:04]} 35. Rb2 {[%emt 0:04:40]} (35. c5 $1 $15) 35... h5 {[%emt 0:01:12]} 36. Kg2 {[%emt 0:00:56]} Ke7 {[%emt 0:00:25]} 37. Kf3 {[%emt 0:00:26]} Kd7 {[%emt 0:00:45]} 38. Ke3 {[%emt 0:00:55]} Kc6 {[%emt 0:00:27]} 39. Rb1 {[%emt 0:03:01]} Kc5 {[%emt 0:01:41]} 40. Rb2 {[%emt 0:00:00]} g6 {[%emt 0:00:00][%cal Bg7g6,Bg6h5][%mdl 32]} 41. f3 {[%emt 0:18:58] [#]} (41. Rb1 $15) 41... Kb6 {[%emt 0:18:40]} (41... Ra1 $1 $17 42. Rd2 Re1+ 43. Kf2 Rb1) 42. g4 {[%emt 0:00:57]} (42. f4 $15) 42... f6 {[%emt 0:02:54]} 43. gxh5 {[%emt 0:00:32]} gxh5 {[%emt 0:00:03]} 44. f4 $2 {[%emt 0:01:21]} (44. Kd3 $17) 44... Kc5 {[%emt 0:02:14]} 45. f5 {[%emt 0:08:21]} Ra1 {[%emt 0:03:09]} 46. Rg2 {[%emt 0:00:26]} (46. Rd2 $142 Rh1 47. Rd5+ Kc6 48. Kf2) 46... Rb1 $19 {[%emt 0:03:24]} 47. Rg6 {[%emt 0:00:23]} Rxb3+ {[%emt 0:00:04]} 48. Kd2 {[%emt 0:00:07]} Kxc4 {[%emt 0:01:32]} 49. Rxf6 {[%emt 0:00:05]} Kd4 {[%emt 0:01:52]} 50. Rxd6+ {[%emt 0:00:16]} Kxe4 {[%emt 0:00:01]} 51. f6 {[%emt 0:00:28]} Rf3 {[%emt 0:00:29]} 52. Rb6 {[%emt 0:00:50]} b3 {[%emt 0:01:02]} (52... Rf2+ $142 53. Ke1 Ke3 54. Rxb4 Rxf6) 53. Ke2 {[%emt 0:00:06] Threatening mate with Rb4+.} Rf5 {[%emt 0:00:46]} 54. Rb4+ {[%emt 0:00:26]} Kd5 {[%emt 0:00:05]} 55. Rxb3 {[%emt 0:00:34]} Rxf6 {[%emt 0:00:05] And now ...Rf4 would win.} 56. Rb4 {[%emt 0:01:38]} (56. Rb5+ $142 Ke6 57. Rb6+ Kf5 58. Rb7) 56... Rf4 {[%emt 0:01:25]} 57. Rxf4 {[%emt 0:00:40]} (57. Rb6 $19) 57... exf4 $11 {[%emt 0:00:01]} 58. Kf3 {[%emt 0:01:30][%mdl 8192] [#]} (58. Kd3 $11 Ke5 59. Kd2 Kf5 60. Ke1 f3 61. Kf1 Kf4 62. Kf2 Kg4 63. Kf1 Kxh4 64. Kf2 Kg4 65. Kf1 Kg3 66. Kg1 f2+ 67. Kf1 h4 68. Ke2 h3 69. Kd3 f1=Q+ 70. Ke4 h2 71. Kd5 h1=Q+ 72. Kd4 Qc6 73. Ke3 Qe1+ 74. Kd4 Qee4#) 58... Ke5 {[%emt 0:00:04] Weighted Error Value: White=0.36/Black=0.15 (very precise)} 0-1

[Event "Polish Youth B18 Championship 2023"]
[Site "Jastrzebia Gora"]
[Date "2023.03.19"]
[Round "9.16"]
[White "Czarniecki, Pawel"]
[Black "Lis, Maksymilian"]
[Result "1-0"]
[ECO "B20"]
[WhiteElo "1625"]
[BlackElo "1784"]
[Annotator "NA RC COMBH"]
[PlyCount "97"]
[EventDate "2023.03.11"]
[EventType "swiss"]
[EventCountry "POL"]
[SourceTitle "playchess.com"]
[Source "ChessBase"]
[SourceQuality "1"]
[TimeControl "40/5400+30:1800+30"]

1. e4 {[%emt 0:00:01]} c5 {[%emt 0:00:05]} 2. a3 {[%emt 0:00:06]} Nc6 {[%emt 0:00:08]} 3. b4 {[%emt 0:00:05]} cxb4 {[%emt 0:00:01]} 4. axb4 {[%emt 0:00:05]} Nxb4 {[%emt 0:00:04]} 5. c3 {[%emt 0:00:04]} Nc6 {[%emt 0:00:02]} 6. d4 {[%emt 0:00:04]} d5 {[%emt 0:00:03]} 7. exd5 {[%emt 0:00:03]} Qxd5 {[%emt 0:00:06]} 8. Na3 {[%emt 0:00:04]} Bf5 {[%emt 0:13:47]} 9. Nb5 {[%emt 0:03:06]} Rc8 {[%emt 0:00:06]} 10. Bf4 {[%emt 0:01:59]} e5 {[%emt 0:04:20]} 11. dxe5 {[%emt 0:08:23]} Qxd1+ {[%emt 0:00:05]} 12. Rxd1 {[%emt 0:00:17]} a6 {[%emt 0:00:07]} 13. Nd6+ {[%emt 0:00:39]} Bxd6 {[%emt 0:00:05]} 14. exd6 {[%emt 0:01:02]} Nf6 {[%emt 0:00:09]} 15. Nf3 {[%emt 0:00:54]} O-O {[%emt 0:00:12]} 16. Bd3 {[%emt 0:04:21]} Bxd3 {[%emt 0:04:33]} 17. Rxd3 {[%emt 0:00:05]} Rfe8+ {[%emt 0:00:09]} 18. Kd1 {[%emt 0:06:08]} Rcd8 {[%emt 0:00:25]} 19. Re1 {[%emt 0:03:31]} Ne4 {[%emt 0:02:28]} 20. Kc2 {[%emt 0:10:02]} Nc5 {[%emt 0:09:46]} 21. Rxe8+ {[%emt 0:01:10]} Rxe8 {[%emt 0:00:04]} 22. Rd5 {[%emt 0:11:02]} Nd7 {[%emt 0:00:05]} 23. Be3 {[%emt 0:02:20]} f6 {[%emt 0:01:27]} 24. Nd4 {[%emt 0:03:52]} Nce5 {[%emt 0:00:25]} 25. h3 {[%emt 0:01:34]} Nc4 {[%emt 0:00:35]} 26. Bf4 {[%emt 0:00:42]} Re4 {[%emt 0:03:37]} 27. Bg3 {[%emt 0:01:49]} b5 {[%emt 0:01:45]} 28. Nb3 {[%emt 0:11:35]} Re2+ {[%emt 0:02:07]} 29. Kd1 {[%emt 0:03:43]} Rb2 {[%emt 0:01:36]} 30. Nc5 {[%emt 0:04:20]} Ncb6 {[%emt 0:01:33]} 31. Rf5 {[%emt 0:00:11]} g6 {[%emt 0:00:25]} 32. Nxd7 {[%emt 0:00:15]} Nxd7 {[%emt 0:00:04]} 33. Rf3 {[%emt 0:00:18]} b4 {[%emt 0:04:19]} 34. c4 {[%emt 0:08:33]} Rb1+ {[%emt 0:00:20]} 35. Kc2 {[%emt 0:01:10]} Re1 {[%emt 0:00:06]} 36. Kb3 {[%emt 0:00:28]} a5 {[%emt 0:00:25]} 37. Ka4 {[%emt 0:09:03]} Ra1+ {[%emt 0:03:20]} 38. Kb5 {[%emt 0:00:07]} Ra3 {[%emt 0:00:04]} 39. Kc6 {[%emt 0:02:59]} b3 {[%emt 0:05:44]} 40. Kxd7 {[%emt 0:00:00]} b2 {[%emt 0:00:00]} 41. Kc7 {[%emt 0:04:52]} Ra4 {[%emt 0:03:37]} 42. Rb3 {[%emt 0:07:34]} Rxc4+ {[%emt 0:00:10]} 43. Kb8 {[%emt 0:00:24]} Rb4+ {[%emt 0:00:04]} 44. Rxb4 {[%emt 0:00:04]} axb4 {[%emt 0:00:03]} 45. d7 {[%emt 0:00:04]} b1=Q {[%emt 0:00:04]} 46. d8=Q+ {[%emt 0:00:06]} Kf7 {[%emt 0:00:09]} 47. Qd7+ {[%emt 0:00:11]} Kg8 {[%emt 0:00:08]} 48. Bd6 {[%emt 0:00:20]} g5 {[%emt 0:00:18]} 49. Qe8+ {[%emt 0:00:18]} 1-0

[Event "Polish Youth B18 Championship 2023"]
[Site "Jastrzebia Gora"]
[Date "2023.03.19"]
[Round "9.17"]
[White "Kossowski, Pawel"]
[Black "Karut, Kacper"]
[Result "1/2-1/2"]
[ECO "B89"]
[WhiteElo "1766"]
[BlackElo "1904"]
[Annotator "TA"]
[PlyCount "112"]
[EventDate "2023.03.11"]
[EventType "swiss"]
[EventCountry "POL"]
[SourceTitle "playchess.com"]
[Source "ChessBase"]
[SourceQuality "1"]
[TimeControl "40/5400+30:1800+30"]

{[%evp 16,112,12,5,26,12,6,-16,0,-32,0,0,7,0,0,0,0,0,0,-13,-16,-12,13,0,0,-45,-22,-27,-20,-15,-18,-28,-18,-205,-21,-16,-2,-8,0,-168,-120,-179,-56,-139,-107,-193,-102,-116,-105,-102,0,0,0,0,0,0,0,0,0,0,0,0,0,0,0,0,0,0,0,0,0,0,0,0,0,0,0,0,0,0,0,0,0,0,0,0,0,0,0,0,0,0,0,0,0,0,0,0,0]} 1. e4 {[%emt 0:00:02] ChessBase II} c5 {[%emt 0:00:05]} 2. Nf3 {[%emt 0:00:29]} Nc6 {[%emt 0:00:04]} 3. d4 {[%emt 0:00:05]} cxd4 {[%emt 0:00:04]} 4. Nxd4 {[%emt 0:00:05]} Nf6 {[%emt 0:00:06]} 5. Nc3 {[%emt 0:00:25]} d6 {[%emt 0:00:05]} 6. Bc4 {[%emt 0:00:36]} e6 {[%emt 0:00:17]} 7. Be3 {[%emt 0:00:19]} Be7 {[%emt 0:00:46] 7...a6 is the hot move.} 8. O-O {[%emt 0:01:34]} O-O {[%emt 0:01:10]} 9. Bb3 {[%emt 0:04:19]} Nxd4 {[%emt 0:08:32] B88: Sicilian: Sozin Attack.} 10. Qxd4 {[%emt 0:03:36]} Bd7 {[%emt 0:02:48]} 11. Rad1 {[%emt 0:02:10]} Bc6 {[%emt 0:01:55]} 12. h3 {[%emt 0:04:08]} (12. Qc4 {feels hotter.} Qa5 13. Bd4 Nxe4 14. Nxe4 Bxe4 15. Bxg7 Bxg2 16. Qg4) 12... Qc7 {[%emt 0:11:09]} 13. f4 {[%emt 0:05:01]} b5 {[%emt 0:03:13][%cal Bb7b5,Bb5b4][%mdl 32]} 14. f5 {[%emt 0:03:08]} e5 {[%emt 0:01:49]} 15. Qd3 {[%emt 0:01:04] [#]} b4 $146 {[%emt 0:11:21]} ({Predecessor:} 15... Rac8 16. g4 Qb7 17. Nd5 Bxd5 18. exd5 Nd7 19. c3 f6 20. Qe2 a5 21. Bc2 Rc7 {½-½ Honfi,K-Paoli,E Reggio Emilia-09 1966/67 (9)}) 16. Nd5 {[%emt 0:02:22]} Bxd5 {[%emt 0:00:23]} 17. Bxd5 {[%emt 0:03:01]} Nxd5 {[%emt 0:05:22]} 18. Qxd5 {[%emt 0:02:11]} Qxc2 {[%emt 0:02:49]} 19. Rd2 {[%emt 0:08:11]} Qc7 {[%emt 0:01:53]} 20. g4 {[%emt 0:01:31]} Qd8 {[%emt 0:04:46]} 21. Rg2 {[%emt 0:01:29]} Bg5 {[%emt 0:01:36]} 22. Bxg5 {[%emt 0:04:20]} Qxg5 {[%emt 0:00:07]} 23. f6 {[%emt 0:00:17]} (23. Qd2 {simplifies} Qxd2 24. Rxd2 Rac8 25. Rxd6 Rc4 26. Rd7) 23... g6 {[%emt 0:02:25]} 24. Qxd6 $2 {[%emt 0:01:04]} (24. Qd2 $11 Qh4 25. Kh2) 24... Qe3+ $2 {[%emt 0:01:03]} (24... Rad8 $19 25. Qxb4 Qe3+ 26. Rgf2 Qxh3) 25. Kh2 $11 {[%emt 0:00:58]} Rad8 {[%emt 0:09:36]} 26. Qxe5 {[%emt 0:13:22]} Rd3 {[%emt 0:01:01]} (26... Rfe8 {simplifies} 27. Qg3 Rxe4 28. Qxe3 Rxe3 29. Rf4 a5) 27. Qf4 $2 {[%emt 0:09:30]} (27. Qg3 $1 $11) 27... Qxh3+ $19 {[%emt 0:00:18]} 28. Kg1 {[%emt 0:00:14] [#]} Qe3+ {[%emt 0:09:11]} ({Better is} 28... Rfd8 $1 $19 {aiming for ...a5.} 29. e5 R3d4) 29. Qf2 {[%emt 0:05:35]} (29. Qxe3 $15 Rxe3 30. Rf4) 29... Re8 {[%emt 0:08:19]} 30. Re1 {[%emt 0:01:33] [#]} (30. Qxe3 $17 Rxe3 31. Rc1) 30... Qh6 {[%emt 0:01:07]} (30... Qg5 $1 $19 31. Rf1 Rxe4 32. Qxa7 Rd8) 31. g5 $17 {[%emt 0:03:27]} Qh5 {[%emt 0:01:33] ...Rh3 would be deadly.} 32. Qe2 {[%emt 0:02:08]} Rh3 {[%emt 0:02:24]} (32... Rf3 $17 {[%cal Oh5h4] Strongly threatening ...Qh4!} 33. e5 Qh4) 33. Qxh5 $11 {[%emt 0:01:43] The position is equal.} Rxh5 {[%emt 0:00:02][%mdl 4096] Endgame KRR-KRR} 34. Rd1 {[%emt 0:03:19]} Rh4 {[%emt 0:03:00][%cal Bh5h4,Bh4e4,Be4e1][%mdl 32]} 35. Rd7 {[%emt 0:01:28]} a5 {[%emt 0:01:08]} 36. Ra7 {[%emt 0:00:25]} Rhxe4 {[%emt 0:00:35]} 37. Rxa5 {[%emt 0:01:24]} h6 {[%emt 0:01:15]} 38. gxh6 Re1+ {[%emt 0:01:25]} 39. Kh2 {[%emt 0:01:09]} R8e6 {[%emt 0:00:19]} 40. Rb5 {[%emt 0:00:00]} R1e4 {[%emt 0:00:00]} 41. Rf2 {[%emt 0:04:08]} Re2 {[%emt 0:03:49]} 42. Kg2 {[%emt 0:00:46]} Rxf2+ {[%emt 0:00:55]} ({Don't take} 42... Kh7 43. Rxb4 Rxf2+ 44. Kxf2 $14) 43. Kxf2 {[%emt 0:00:07]} Rxf6+ {[%emt 0:00:06] KR-KR} 44. Kg3 {[%emt 0:00:09]} Ra6 {[%emt 0:00:40]} 45. Rxb4 {[%emt 0:01:06]} Rxa2 {[%emt 0:00:11]} 46. Rb7 {[%emt 0:00:15]} Ra8 {[%emt 0:08:26]} 47. Kg4 {[%emt 0:02:34]} Ra4+ {[%emt 0:00:49]} 48. b4 {[%emt 0:00:12]} Ra1 {[%emt 0:00:42]} 49. h7+ {[%emt 0:02:00][%mdl 64] Decoy} Kxh7 {[%emt 0:00:02] Hoping for ...Rf1.} 50. Rxf7+ {[%emt 0:00:05]} Kh6 {[%emt 0:00:07]} 51. b5 {[%emt 0:01:02]} Rb1 {[%emt 0:00:11]} 52. Rb7 {[%emt 0:00:10]} Rb4+ {[%emt 0:00:05]} 53. Kg3 {[%emt 0:00:18]} Kg5 {[%emt 0:00:13]} 54. b6 {[%emt 0:00:57]} Rb3+ {[%emt 0:00:05]} 55. Kf2 {[%emt 0:01:59]} Kg4 {[%emt 0:00:12]} 56. Rb8 {[%emt 0:00:12]} Rb2+ {[%emt 0:01:13] Weighted Error Value: White=0.20 (precise) /Black=0.20 (precise)} 1/2-1/2

[Event "Polish Youth B18 Championship 2023"]
[Site "Jastrzebia Gora"]
[Date "2023.03.19"]
[Round "9.18"]
[White "Zeissel, Andrzej"]
[Black "Kozlowski, Franciszek"]
[Result "1-0"]
[ECO "C11"]
[WhiteElo "1717"]
[BlackElo "1829"]
[Annotator "NA RC COMBH"]
[PlyCount "62"]
[EventDate "2023.03.11"]
[EventType "swiss"]
[EventCountry "POL"]
[SourceTitle "playchess.com"]
[Source "ChessBase"]
[SourceQuality "1"]
[TimeControl "40/5400+30:1800+30"]

1. e4 {[%emt 0:00:02]} c6 {[%emt 0:00:07]} 2. d4 {[%emt 0:00:04]} d5 {[%emt 0:00:06]} 3. f3 {[%emt 0:00:03]} e6 {[%emt 0:00:25]} 4. Nc3 {[%emt 0:00:05]} Nf6 {[%emt 0:00:08]} 5. e5 {[%emt 0:00:04]} Nfd7 {[%emt 0:00:05]} 6. f4 {[%emt 0:00:04]} c5 {[%emt 0:00:21]} 7. Nf3 {[%emt 0:00:02]} Nc6 {[%emt 0:02:05]} 8. Be3 {[%emt 0:00:02]} cxd4 {[%emt 0:01:04]} 9. Nxd4 {[%emt 0:00:03]} a6 {[%emt 0:00:58]} 10. Be2 {[%emt 0:03:38]} Bc5 {[%emt 0:05:42]} 11. Qd2 {[%emt 0:04:36]} Ndxe5 {[%emt 0:14:31]} 12. O-O-O {[%emt 0:17:38]} ({Don't play} 12. fxe5 Nxd4 13. Bd1 Nxc2+ 14. Bxc2 Bxe3 {[%mdl 64] Remove Defender} 15. Qxe3 d4 $17 {[%mdl 64] Deflection, Double Attack}) ({Only move:} 12. Nxc6 $14 Bxe3 13. Nxd8 (13. Qxe3 Nxc6 14. Qc5 Bd7 $17) 13... Bxd2+ 14. Kxd2) 12... Nc4 {[%emt 0:12:30]} 13. Bxc4 {[%emt 0:00:42]} dxc4 {[%emt 0:00:23]} 14. Nxc6 {[%emt 0:01:37]} Qxd2+ {[%emt 0:00:30]} 15. Bxd2 {[%emt 0:00:02]} bxc6 {[%emt 0:00:12]} 16. Ne4 {[%emt 0:06:04]} Be7 {[%emt 0:02:36]} 17. Bc3 {[%emt 0:03:21]} f6 {[%emt 0:03:19]} 18. Nd6+ {[%emt 0:08:56]} Bxd6 {[%emt 0:01:46]} 19. Rxd6 {[%emt 0:00:02]} Bd7 {[%emt 0:02:53]} 20. Rhd1 {[%emt 0:01:23]} Ra7 {[%emt 0:00:08]} 21. Bd4 {[%emt 0:02:34]} Rb7 {[%emt 0:00:49]} 22. Bc5 {[%emt 0:01:33]} g5 {[%emt 0:02:29]} 23. fxg5 {[%emt 0:09:01]} fxg5 {[%emt 0:00:32]} 24. R1d4 {[%emt 0:01:56]} Rg8 {[%emt 0:03:05]} 25. Rxc4 {[%emt 0:02:44]} Rg6 {[%emt 0:04:10]} 26. Ra4 {[%emt 0:03:35]} e5 {[%emt 0:03:44]} 27. Rxg6 {[%emt 0:03:59]} hxg6 {[%emt 0:00:05]} 28. Rxa6 {[%emt 0:01:14]} Rb5 {[%emt 0:03:41]} 29. b4 {[%emt 0:00:58]} Kf7 {[%emt 0:00:26]} 30. Ra8 {[%emt 0:02:30]} Ke6 $18 {[%emt 0:01:15]} 31. Rd8 {[%emt 0:01:01]} Kd5 1-0

[Event "Polish Youth B18 Championship 2023"]
[Site "Jastrzebia Gora"]
[Date "2023.03.19"]
[Round "9.19"]
[White "Pieczulis, Blazej"]
[Black "Bem, Tymoteusz"]
[Result "1-0"]
[ECO "D45"]
[WhiteElo "1784"]
[BlackElo "1748"]
[Annotator "NA RC COMBH"]
[PlyCount "45"]
[EventDate "2023.03.11"]
[EventType "swiss"]
[EventCountry "POL"]
[SourceTitle "playchess.com"]
[Source "ChessBase"]
[SourceQuality "1"]
[TimeControl "40/5400+30:1800+30"]

1. d4 {[%emt 0:00:13]} d5 {[%emt 0:01:05]} 2. c4 {[%emt 0:00:03]} c6 {[%emt 0:00:11]} 3. Nc3 {[%emt 0:00:04]} Nf6 {[%emt 0:00:18]} 4. e3 {[%emt 0:00:10]} e6 {[%emt 0:02:06]} 5. Nf3 {[%emt 0:01:18]} Nbd7 {[%emt 0:00:21]} 6. Be2 {[%emt 0:00:59]} Bd6 {[%emt 0:00:19]} 7. O-O {[%emt 0:00:42]} b6 {[%emt 0:01:19]} 8. b3 {[%emt 0:01:07]} Bb7 {[%emt 0:00:42]} 9. Bb2 {[%emt 0:00:32]} O-O {[%emt 0:00:25]} 10. Bd3 {[%emt 0:09:13]} Qe7 {[%emt 0:05:46]} 11. Re1 {[%emt 0:01:29]} c5 {[%emt 0:02:18]} 12. e4 {[%emt 0:19:13]} cxd4 {[%emt 0:11:06]} 13. Nxd4 {[%emt 0:00:51]} dxe4 {[%emt 0:01:36]} 14. Nxe4 {[%emt 0:00:26]} Nxe4 {[%emt 0:01:16]} 15. Bxe4 {[%emt 0:00:13]} Bxh2+ {[%emt 0:00:29]} 16. Kxh2 {[%emt 0:08:59]} Qh4+ {[%emt 0:00:15]} 17. Kg1 {[%emt 0:00:06]} Bxe4 {[%emt 0:00:20]} 18. f3 {[%emt 0:00:53]} Bf5 {[%emt 0:03:46]} 19. Nxf5 {[%emt 0:00:22]} exf5 {[%emt 0:00:02]} 20. Qxd7 {[%emt 0:01:30]} Rad8 {[%emt 0:00:40]} 21. Qe7 {[%emt 0:01:23]} f6 {[%emt 0:00:34]} 22. Qe3 {[%emt 0:03:36]} Rfe8 {[%emt 0:00:44]} 23. Qc3 {[%emt 0:00:59]} 1-0

[Event "Polish Youth B18 Championship 2023"]
[Site "Jastrzebia Gora"]
[Date "2023.03.19"]
[Round "9.20"]
[White "Smuda, Tomasz"]
[Black "Krasniewski, Szymon"]
[Result "1-0"]
[ECO "A48"]
[WhiteElo "1654"]
[BlackElo "1771"]
[Annotator "NA RC COMBH"]
[PlyCount "129"]
[EventDate "2023.03.11"]
[EventType "swiss"]
[EventCountry "POL"]
[SourceTitle "playchess.com"]
[Source "ChessBase"]
[SourceQuality "1"]
[TimeControl "40/5400+30:1800+30"]

1. d4 {[%emt 0:00:05]} Nf6 {[%emt 0:00:05]} 2. Nf3 {[%emt 0:00:27]} g6 {[%emt 0:00:14]} 3. Nbd2 {[%emt 0:00:20]} Bg7 {[%emt 0:00:11]} 4. e4 {[%emt 0:00:37]} d6 {[%emt 0:00:08]} 5. Bb5+ {[%emt 0:00:05]} c6 {[%emt 0:00:54]} 6. Bd3 {[%emt 0:00:08]} O-O {[%emt 0:00:09]} 7. O-O {[%emt 0:00:24]} Nbd7 {[%emt 0:00:36]} 8. a4 {[%emt 0:01:42]} e5 {[%emt 0:02:56]} 9. dxe5 {[%emt 0:01:04]} dxe5 {[%emt 0:00:08]} 10. b4 {[%emt 0:00:42]} Qc7 {[%emt 0:08:35]} 11. Bb2 {[%emt 0:01:13]} Ne8 {[%emt 0:36:35]} 12. c3 {[%emt 0:06:40]} Nd6 {[%emt 0:03:29]} 13. Qe2 {[%emt 0:07:45]} Kh8 {[%emt 0:07:05]} 14. Nc4 {[%emt 0:02:51]} Nxc4 {[%emt 0:09:05]} 15. Bxc4 {[%emt 0:02:07]} Nf6 {[%emt 0:05:10]} 16. Rfd1 {[%emt 0:01:10]} Bg4 {[%emt 0:03:37]} 17. b5 {[%emt 0:14:21]} Nh5 {[%emt 0:05:40]} 18. Ba3 {[%emt 0:03:52]} Rfd8 {[%emt 0:02:02]} 19. h3 {[%emt 0:05:23]} Nf4 20. Qe3 cxb5 {[%emt 0:02:53]} 21. Bxb5 {[%emt 0:01:37]} Bxf3 {[%emt 0:02:10]} 22. Qxf3 {[%emt 0:00:05]} a6 {[%emt 0:00:30]} 23. Bf1 {[%emt 0:00:45]} h6 {[%emt 0:04:00]} 24. g3 {[%emt 0:05:21]} Ne6 {[%emt 0:00:11]} 25. Rd5 {[%emt 0:01:45]} Ng5 {[%emt 0:02:20]} 26. Qe3 {[%emt 0:01:23]} f5 {[%emt 0:01:27]} 27. Rc5 {[%emt 0:21:24]} Qd7 {[%emt 0:01:01]} 28. Bg2 {[%emt 0:03:00]} Qxa4 {[%emt 0:01:51]} 29. exf5 {[%emt 0:02:26]} Rd1+ {[%emt 0:00:56]} 30. Rxd1 {[%emt 0:00:13]} Qxd1+ {[%emt 0:00:01]} 31. Kh2 {[%emt 0:00:05]} Qb3 {[%emt 0:00:28]} 32. Bb4 {[%emt 0:02:44]} gxf5 {[%emt 0:01:03]} 33. Rxe5 {[%emt 0:08:10]} Qf7 {[%emt 0:00:52]} 34. Re7 {[%emt 0:00:34]} Qh5 {[%emt 0:00:11]} 35. f4 {[%emt 0:02:45]} Ne4 {[%emt 0:00:21]} 36. g4 {[%emt 0:01:15]} Qh4 {[%emt 0:00:10]} 37. gxf5 {[%emt 0:00:49]} a5 {[%emt 0:01:03]} 38. Ba3 {[%emt 0:00:54]} Nf6 {[%emt 0:00:41]} 39. Qf3 {[%emt 0:02:39]} Rc8 {[%emt 0:00:33]} 40. c4 {[%emt 0:00:00]} Rg8 {[%emt 0:00:00]} 41. Rxb7 {[%emt 0:07:55]} h5 {[%emt 0:08:48]} 42. Be7 {[%emt 0:07:54]} Re8 {[%emt 0:07:33]} 43. Bxf6 {[%emt 0:05:49]} Bxf6 {[%emt 0:00:22]} 44. Rb6 {[%emt 0:01:46]} Re1 {[%emt 0:05:00]} 45. Re6 {[%emt 0:04:48]} Ra1 {[%emt 0:04:11]} 46. Qa8+ {[%emt 0:05:39]} Kh7 {[%emt 0:00:10]} 47. Qb7+ {[%emt 0:00:22]} Bg7 {[%emt 0:04:12]} 48. Qe4 {[%emt 0:00:54]} Bf6 {[%emt 0:00:42]} 49. Rd6 Ra3 {[%emt 0:01:34]} 50. Rd7+ {[%emt 0:00:58]} Kh6 {[%emt 0:00:12]} 51. Rd1 {[%emt 0:00:33]} Qg3+ {[%emt 0:00:36]} 52. Kh1 {[%emt 0:00:17]} Ra2 {[%emt 0:01:57]} 53. Qc6 {[%emt 0:00:34]} Qh4 {[%emt 0:00:40]} 54. c5 {[%emt 0:00:37]} a4 {[%emt 0:01:06]} 55. Qe8 {[%emt 0:00:32]} Qg3 {[%emt 0:00:50]} 56. Qe4 {[%emt 0:00:30]} a3 {[%emt 0:00:35]} 57. c6 {[%emt 0:00:28]} Ra1 {[%emt 0:00:40]} 58. Rxa1 {[%emt 0:00:18]} Bxa1 {[%emt 0:00:03]} 59. c7 {[%emt 0:00:44]} a2 {[%emt 0:00:23]} 60. c8=Q Bf6 {[%emt 0:00:42]} 61. Qf8+ {[%emt 0:00:59]} Qg7 {[%emt 0:00:15]} 62. Qee8 {[%emt 0:00:32]} a1=Q+ {[%emt 0:00:46]} 63. Kh2 {[%emt 0:00:07]} Kh7 {[%emt 0:00:41]} 64. Qh8+ {[%emt 0:00:16]} Qxh8 {[%emt 0:00:17]} 65. Qg6# {[%emt 0:00:05]} 1-0